Cogmind - Beta 17.1 @@@ ROGUE MODE // 2026.09.09 @ 15:04:56 Player: Firely Result: Destroyed by H5-BE4(R) with Subdweller Laser Performance ------------- Evolutions (0) 0 Regions Visited (2) 400 Robots Destroyed (14) 70 Value Destroyed (367) 367 Prototype IDs (0) 0 Alien Tech Used (0) 0 Bonus (0) 0 TOTAL SCORE: 837 Bonus ------- None Cogmind --------- Core Integrity 0/250 Matter 283/300 Energy 250/250 System Corruption 0% Temperature Cool (6) Movement Treading (160) Location -10/Subcaves Parts ------- > --- POWER (1) -------- Ion Engine > --- PROPULSION (2) --- Light Treads Light Treads > --- UTILITY (2) ------ Medium Storage Unit Hacking Suite > --- WEAPON (2) ------- Medium Laser > --- INVENTORY (10) --- Light Ion Engine Light Ion Engine Heat Sink Disposable Heat Sink Small Storage Unit Signal Interpreter Medium Laser Medium Laser Dirty Datajack (20) Mining Laser Peak State ------------ > --- POWER ------------ Ion Engine > --- PROPULSION ------- Light Treads Light Treads > --- UTILITY ---------- Medium Storage Unit Hacking Suite > --- WEAPON ----------- Medium Laser Medium Laser > --- INVENTORY -------- Light Ion Engine Light Ion Engine Light Treads Light Treads Aluminum Leg Small Storage Unit Signal Interpreter Medium Laser Light Cannon Mining Laser [Rating: 10] Favorites ----------- Power Ion Engine Engine Ion Engine Propulsion Light Treads Treads Light Treads Utility Medium Storage Unit Storage Medium Storage Unit Hackware Hacking Suite Weapon Medium Laser Energy Gun Medium Laser Ballistic Cannon Light Cannon Special Weapon Mining Laser Build | -11 -10 -10 ------- Run | Yrd Mat Sub Slots Evolved . | . . . Power . | . . . Propulsion . | . . . Utility . | . . . Weapon . | . . . Parts Attached 14 | 6 4 4 Power 2 | 1 1 . Engine 2 | 1 1 . Core . | . . . Reactor . | . . . Propulsion 4 | 2 . 2 Treads 4 | 2 . 2 Leg . | . . . Wheel . | . . . Hover . | . . . Flight . | . . . Utility 3 | 1 2 . Device . | . . . Storage 2 | 1 1 . Processor . | . . . Hackware 1 | . 1 . Protection . | . . . Artifact . | . . . Weapon 5 | 2 1 2 Energy Gun 3 | 2 . 1 Energy Cannon . | . . . Ballistic Gun . | . . . Ballistic Cannon 1 | . 1 . Launcher . | . . . Special Weapon 1 | . . 1 Impact Weapon . | . . . Slashing Weapon . | . . . Piercing Weapon . | . . . Special Melee Weapon . | . . . Unidentified Prototypes . | . . . Parts Lost 1 | . . 1 Power . | . . . Propulsion . | . . . Utility . | . . . Weapon 1 | . . 1 Highest Loss Streak 1 | . . 1 To Critical Strikes . | . . . Average Backups 9 | 4 9 9 Power 1 | . 1 2 Propulsion 2 | 2 3 1 Utility 2 | . 1 3 Weapon 2 | 1 2 3 Tool/Special . | . . . Unused Backups 14 | . 8 6 Power 2 | . . 2 Propulsion 4 | . 4 . Utility 3 | . . 3 Weapon 4 | . 4 . Tool/Special 1 | . . 1 Average Slot Usage (%) 95 | . 91 99 Engine 14 | . 14 14 Treads 28 | . 28 28 Storage 14 | . 14 14 Hackware 9 | . 5 14 Energy Gun 19 | . 25 13 Ballistic Cannon 7 | . 2 13 Peak Build Rating 10 | 6 10 10 Average Rating 8 | 5 8 9 On Entrance 5 | . 6 10 Avg Prop Armor Cover (%) . | . . . Naked Turns . | . . . Heaviest Build 20 | 14 20 20 Greatest Support 40 | 40 40 40 Greatest Overweight (x) 3 | 3 . . Average Overweight (x) . | . . . Largest Inventory Capacity 10 | 8 10 10 Average Capacity 9 | 7 9 10 Most Carried 10 | 7 10 10 Average Carried 9 | 4 9 9 Final Capacity 10 | 8 10 10 Final Carried 10 | 6 10 10 Class Distribution -------------------- 89% | Mutant 10% | Scavenger-Mutant Dominant Class ---------------- Mutant | -10/Materials Mutant | -10/Subcaves Resources | -11 -10 -10 ----------- Run | Yrd Mat Sub Matter Collected 418 | 248 68 102 Remotely . | . . . Salvage Created 454 | . 342 112 Parts 22 | . 15 7 Haulers Intercepted 2 | . 2 . Recyclers Shooed . | . . . Parts Field Recycled . | . . . Retrieved Matter . | . . . Parts Self-Destructed 1 | . . 1 Prevented . | . . . Parts Restored . | . . . Kills | -11 -10 -10 ------- Run | Yrd Mat Sub Combat Hostiles Destroyed 9 | . 5 4 Guns 5 | . 3 2 Cannons 4 | . 2 2 Classes Destroyed 6 | . 5 1 Worker 1 | . 1 . Hauler 2 | . 2 . Operator 1 | . 1 . Watcher 1 | . 1 . Grunt 5 | . 5 . Subdweller 4 | . . 4 Best Kill Streak 3 | . 3 2 Combat Bots Only 2 | . 2 2 Max Kills in Single Turn 1 | . 1 1 Gunslinging . | . . . Exploded . | . . . Melee . | . . . Uniques/NPCs Destroyed . | . . . Combat | -11 -10 -10 -------- Run | Yrd Mat Sub Hostile Shots Fired 68 | . 31 37 Missed 16 | . 5 11 Hits 52 | . 26 26 Projectile 52 | . 26 26 AOE 1 | . . 1 Damage Taken 952 | . 311 641 Core 260 | . 111 149 Absorbed by Shields . | . . . Core Remaining (%) 100 | 100 . . Volleys Fired 58 | . 38 20 Largest 2 | . 2 2 Hottest 130 | . 100 130 Shots Fired 100 | . 65 35 Gun 73 | . 61 12 Cannon 20 | . 4 16 Launcher . | . . . Special 7 | . . 7 Kinetic 20 | . 4 16 Thermal 80 | . 61 19 Explosive . | . . . Electromagnetic . | . . . Robot Hit Streak 11 | . 8 11 Robot Miss Streak 3 | . 3 2 Penetration Max . | . . . Secondary Targets . | . . . Shots Hit Robots 65 | . 41 24 Core Hits 26 | . 17 9 Critical Kills . | . . . Critical Parts Destroyed . | . . . Critical Strikes 3 | . 3 . Burn 3 | . 3 . Melee Attacks . | . . . Impact . | . . . Slashing . | . . . Piercing . | . . . Sneak Attacks . | . . . Combat Hostiles . | . . . Follow-up Attacks . | . . . Damage Inflicted 951 | . 551 400 Guns 603 | . 479 124 Cannons 300 | . 72 228 Explosions . | . . . Melee . | . . . Ramming . | . . . Kinetic 300 | . 72 228 Thermal 651 | . 479 172 Explosive . | . . . Electromagnetic . | . . . Impact . | . . . Slashing . | . . . Piercing . | . . . Highest Corruption . | . . . Average Corruption . | . . . Corruption Purged . | . . . Corruption Blocked . | . . . Overload Shots . | . . . Overflow Damage . | . . . Projectiles . | . . . Explosions . | . . . Melee . | . . . Knockbacks 3 | . 1 2 Impact . | . . . Kinetic 3 | . 1 2 Secondary . | . . . Self-Inflicted Damage . | . . . Shots . | . . . Rammed . | . . . Targets Rammed . | . . . Kicked . | . . . Crushed . | . . . Highest Temperature 345 | . 345 . Average Temperature 118 | . 118 . Received Heat Transfer 330 | . 156 174 Effects 2 | . 2 . Interference 2 | . 2 . Siege Activations . | . . . Martial Activations . | . . . Shielding Activations . | . . . Robots Disrupted . | . . . Combat Hostiles . | . . . Robots Corrupted . | . . . Combat Hostiles . | . . . Parts Fried . | . . . Impact Corruptions . | . . . Robots Melted . | . . . Combat Hostiles . | . . . Parts Melted 4 | . 4 . Heat Transferred 2098 | . 1628 470 Parts Sabotaged . | . . . Parts Stolen . | . . . Parts Stripped . | . . . Power Chain Reactions . | . . . Alert | -11 -10 -10 ------- Run | Yrd Mat Sub Maximum Alert Level . | . . . Low Security (%) 100 | 100 100 . Level 1 . | . . . Level 2 . | . . . Level 3 . | . . . Level 4 . | . . . Level 5 . | . . . High Security . | . . . Max Security . | . . . Peak Influence 56 | . 56 . Initial . | . . . Average 9 | . 10 . Influence Increases 163 | . 163 . Destroy 0b10 Robot/C 100 | . 100 . Destroy 0b10 Robot/NC 25 | . 25 . Destroy Leader 26 | . 26 . Successful Hack 12 | . 12 . Influence Decreases 163 | . 149 14 Entered New Map 7 | . . 7 Time Decay 156 | . 149 7 Squads Dispatched 2 | . 2 . Investigation 1 | . 1 . Extermination . | . . . Reinforcement 1 | . 1 . Assault . | . . . Garrison . | . . . Intercept . | . . . Searches Triggered . | . . . Construction Impeded . | . . . Haulers Reinforced . | . . . Active Scanning Responses . | . . . Cargo Convoy Interrupts . | . . . Stealth | -11 -10 -10 --------- Run | Yrd Mat Sub Distress Signals 1 | . 1 . Communications Jammed . | . . . Distress Signals . | . . . Times Spotted 16 | . 10 6 Peak Tracking Total 2 | . 2 2 Tactical Retreats 1 | . . 1 Traps | -11 -10 -10 ------- Run | Yrd Mat Sub Traps Triggered 2 | . 2 . Indirectly . | . . . Trap Hack Attempts . | . . . Triggered . | . . . Disarmed . | . . . Reprogrammed . | . . . Reused . | . . . Traps Extracted . | . . . Installed . | . . . Triggered . | . . . Machines | -11 -10 -10 ---------- Run | Yrd Mat Sub Machines Disabled . | . . . Max in Single Turn . | . . . Machines Repaired . | . . . Machines Dismantled . | . . . Machines Sabotaged . | . . . Overloaded Fab Kills . | . . . Hacking | -11 -10 -10 --------- Run | Yrd Mat Sub Machines Accessed 3 | . 2 1 Terminals 2 | . 2 . Fabricators . | . . . Repair Stations . | . . . Recycling Units . | . . . Scanalyzers . | . . . Garrison Access . | . . . Total Hacks 10 | . 5 5 Successful 9 | . 4 5 Failed 1 | . 1 . Catastrophic . | . . . Database Lockouts . | . . . Manual . | . . . Terminals 5 | . 5 . Fabricators . | . . . Repair Stations . | . . . Recycling Units . | . . . Scanalyzers . | . . . Garrison Access . | . . . Terminal Hacks 9 | . 4 5 Record 5 | . . 5 Locate Traps 1 | . 1 . Transport Status 1 | . 1 . Registered Components 1 | . 1 . Zone Layout 1 | . 1 . Fabricator Hacks . | . . . Repair Station Hacks . | . . . Recycling Unit Hacks . | . . . Scanalyzer . | . . . Garrison Access Hacks . | . . . Unauthorized Hacks . | . . . Terminals . | . . . Fabricators . | . . . Repair Stations . | . . . Recycling Units . | . . . Scanalyzers . | . . . Garrison Access . | . . . Data Cores Recovered . | . . . Used . | . . . Hacking Detections 1 | . 1 . Full Trace Events . | . . . Feedback Events . | . . . Feedback Blocked . | . . . Robot Schematics Acquired . | . . . Robots Built . | . . . Authchips . | . . . Time . | . . . Total Robot Build Rating . | . . . Part Schematics Acquired . | . . . Parts Built . | . . . Authchips . | . . . Time . | . . . Total Part Build Rating . | . . . Part Studies Acquired . | . . . Parts Repaired . | . . . Time . | . . . Parts Recycled . | . . . Recycled Matter . | . . . Retrieved Matter . | . . . Retrieved Components . | . . . Parts Scanalyzed . | . . . Part Schematics Acquired . | . . . Parts Damaged . | . . . Bothacking | -11 -10 -10 ------------ Run | Yrd Mat Sub Used RIF Installer . | . . . Robots Hacked . | . . . Non-combat . | . . . Combat . | . . . Robot Hacks Applied . | . . . Relay Couplers Released . | . . . Fabnet Peak Effective % . | . . . Robots Rewired . | . . . Allies Hacked . | . . . Hacks Repelled . | . . . Allies | -11 -10 -10 -------- Run | Yrd Mat Sub Total Allies . | . . . Largest Group . | . . . Highest-Rated Group . | . . . Highest-Rated Ally . | . . . Total Orders . | . . . Ally Attacks . | . . . Total Damage . | . . . Kills . | . . . Allies Corrupted . | . . . Allies Melted . | . . . Intel | -11 -10 -10 ------- Run | Yrd Mat Sub Active Infowar (turns) . | . . . Robot Analysis Total . | . . . Derelict Logs Recovered . | . . . Drone Launches . | . . . Drone Recoveries . | . . . Exploration | -11 -10 -10 ------------- Run | Yrd Mat Sub Turns Passed 1983 | 131 950 902 Spaces Moved 1009 | 73 437 499 Core 5 | 5 . . Treads 1004 | 68 437 499 Legs . | . . . Wheels . | . . . Hover . | . . . Flight . | . . . Fastest Speed 50 | 50 160 160 Average Speed 159 | 157 160 160 Slowest Speed 200 | 200 160 160 Overloaded Moves . | . . . Propulsion Burnouts . | . . . Robots Hopped . | . . . Potential Cave-ins . | . . . Cave-ins Triggered . | . . . Exploration Rate (%) 30 | 5 60 26 Regions Visited 2 Branch Regions 1 Pre-discovered Areas 1 | . . 1 Known Exits Taken . | . . . Unknown Exits Taken 2 | 1 1 . Scrap Searched . | . . . Spaces Dug . | . . . Terrain Destroyed . | . . . Melee . | . . . Projectile . | . . . AOE . | . . . Terrain Rammed . | . . . Walls Destroyed . | . . . Machines Disabled . | . . . Actions | -11 -10 -10 --------- Run | Yrd Mat Sub Total 1266 | 88 627 551 Wait 149 | . 127 22 Move 1007 | 72 436 499 Hop . | . . . Pick Up 24 | 10 12 2 Fast Attach 3 | 2 1 . Attach 5 | 4 1 . Detach 1 | . 1 . Swap 8 | . 2 6 Drop 11 | . 9 2 Fire 58 | . 38 20 Melee . | . . . Ram . | . . . Kick . | . . . Crush . | . . . Escape Stasis . | . . . Rewire . | . . . Trap . | . . . Miscellaneous . | . . . Route ------- -11/Scrapyard -10/Materials (discovered 4 exits: [*Mat x2] / [*Min] / *Sub) -10/Subcaves History --------- Turn | Location | Event 2 | -11/Scrapyard | Met Revision 17 29 | -11/Scrapyard | Discovered new exit (range 15) 132 | -11/Scrapyard | Entered Materials 259 | -10/Materials | Discovered new exit (range 16) 301 | -10/Materials | Build established: Mutant 321 | -10/Materials | Discovered new exit (range 8) 697 | -10/Materials | Discovered new exit (range 4) 786 | -10/Materials | Discovered new exit (range 5) 1082 | -10/Materials | Entered Subcaves 1083 | -10/Subcaves | Approached by a straggling Scientist 1209 | -10/Subcaves | Core integrity fell below 50% 1368 | -10/Subcaves | Visited Clippyterm 1373 | -10/Subcaves | Learned location of Deep Caves (-7) 1373 | -10/Subcaves | Learned Research security intel 1786 | -10/Subcaves | Core integrity fell below 20% 1984 | -10/Subcaves | Destroyed by H5-BE4(R) with Subdweller Laser Last Messages --------------- Connecting with Clippyterm... Acquired 17 matter. S3-LOZ(R) knocked back. AP-WCW(R) destroyed. S3-LOZ(R) destroyed. Subatomizers dissect the Disposable Heat Sink. Dropped Lgt. Treads. Acquired Dirty Datajack. Acquired 38 matter. Acquired 2 matter. Acquired 4 matter. Acquired 24 matter. Subatomizers dissect the Lgt. Treads. Acquired 4 matter. Acquired 1 matter. Acquired Disposable Heat Sink. XO-DK3(u) tweaks Twisted Machinery. R0-X1C(R) destroyed. Lgt. Cannon destroyed. Subatomizers dissect the Sub. Monowheel. Map ----- +----------------------------------------------------+ | ?# ### ##???????##### ##??????????????? | | ?# ##############??####### """"#??????????????? | | ?## ###????????????#"##""# "" "##?????????????? | | ?## ####????????##" " "" " "##????????????? | | ?# ##?#######"" ##???????????? | | ?# ### #& " #####???????? | | ?# " #???????? | | ?# &&& "### #???????? | | ?# # ###?## ## ###???????? | | ?#### ##" #????########?????????? | | ????# ## &#### " #?????????????????????? | | ????# ### #### " #?????????????????????? | | ???# ##?# ## "" #?????????????????????? | | ???# #??# " #?????????????????????? | | ??# ###??## ####?????????????????????? | | ?# ###????## #????????????????????????? | | # ##??????# #####?????????????????????? | | # #????????# ### ##????????????????????? | | # ###?????????## ### ##???????????????????? | | ##???????###???## ### #???????????????????? | | ????????## ##???## #???????????????????? | | ??####### ##???# ##??????????????????? | | ?## ## ##?## #??????????????????? | | ## ### #??????????????????? | | # """ #??????????????????? | | #####""" @! #??????????????????? | | ???#"""## #####%R #??????????????????? | | ???##""## " ##??##= #??????????????????? | | ????# "# ## """ ##??## ####??????????????????? | | ???? "" ?###""" ##??## #?????????????????????? | | ???? " ???## #???# ##?????????????????????? | | ???? ""????#### #??## #??????????????????????? | | ???" "???????###?## ##????????##?? ????????? | | ???# ?????????????# #??##??? ## ????????? | | ????????????????????# #?# #?? ????????? | | ????????????????????# ## #? ????????? | | ???????????????????## ## ????????? | | ?????????????????"## ????????? | | ????????????????""""" ## ??????????? | | ???????????????? """ ## #???????????????? | | ?????????????????#####?# ###???????????????? | | ???????????????????????### ###?????????????????? | | ????????????????????????# #??????? ????????? | | ??????????????###???????# #???# ?????????? | | ????????????### ???##### ### #?????????? | | ???????????## #?## ## #?????????????? | | ??????????## ""## ## ###??????????????? | | ??????????? " " #??#????????????????? | | ????????????## "" """ #???????????????????? | | ?????????????###"""" #???????????????????? | +----------------------------------------------------+ Best States ------------- Heat Dissipation 25 Energy Generation 10 Energy Capacity 250 Matter Stores 300 Matter Capacity 300 Sight Range 16 Terrain Scan Density 10 Evasion (%) 40 Recoil Reduction 2 Offensive Hacking 10 Item Schematics ----------------- None Robot Schematics ------------------ None Fabricated ------------ Nothing Repaired ---------- Nothing Studied --------- None Alien Tech Used ----------------- None Achievements -------------- You Again Challenges ------------ None Game ------ Seed ShiftActuatorHoverbase Manual? 0 Play Time 00:19:57 Cumulative 22.0 hours Start 2026.09.09 @ 14:45:36 End 2026.09.09 @ 15:04:56 Sessions 1 Manual Loads 0 Difficulty Rogue Special Mode None Game No. 12 Rogue 12 Adventurer 0 Explorer 0 Win Type - Total 0 Types 0/0/0/0/0/0/0/0/0/0 Lore% 11 Gallery% 16 Achievement% 13 Wizard Run 0 Options --------- Layout 1 ASCII 0 Keyboard 0 Movement Numpad Keybinds 0 Fullscreen 1 Font 32/SmallcapsGlow Map View 50x40 Zoom Use 0% Tactical HUD 0 Map Filters NONE Filters NONE Steam 1 RUN: 8b8bb8fa-d776-4d78-97cc-614b35f80ba3